Cogmind - Beta 17 @@@ ROGUE MODE // 2026.07.18 @ 19:04:00 Player: JoshuaCF Result: Destroyed by X-62 Marksman with Gauss Rifle Performance ------------- Evolutions (2) 1000 Regions Visited (3) 600 Robots Destroyed (60) 300 Value Destroyed (1677) 1677 Prototype IDs (6) 120 Alien Tech Used (0) 0 Bonus (126) 126 TOTAL SCORE: 3823 Bonus ------- High Alert Combat Kills 126 Cogmind --------- Core Integrity 0/550 Matter 245/300 Energy 265/265 System Corruption 0% Temperature Cool (0) Movement Hovering (180) Ox2 Location -8/Materials Parts ------- > --- POWER (1) -------- Improved Ion Engine > --- PROPULSION (4) --- Airjet > --- UTILITY (4) ------ Hardened Light Armor Plating > --- WEAPON (2) ------- Autogun Axe > --- INVENTORY (5) ---- Improved Ion Engine Hardened Light Armor Plating EM Pulse Gun EM Shotgun Peak State ------------ > --- POWER ------------ Improved Ion Engine > --- PROPULSION ------- Aluminum Leg Aluminum Leg Aluminum Leg Aluminum Leg > --- UTILITY ---------- Improved Heat Sink Large Storage Unit Medium Matter Pod Light Armor Plating > --- WEAPON ----------- Ion Cannon Assault Cannon > --- INVENTORY -------- Improved Ion Engine Improved Ion Engine Improved Ion Engine Aluminum Leg Aluminum Leg Aluminum Leg Large Storage Unit EM Pulse Gun EM Shotgun Beam Rifle Improved Assault Rifle Improved Assault Rifle Assault Cannon Grenade Launcher [Rating: 20] Favorites ----------- Power Ion Engine Engine Ion Engine Propulsion Aluminum Leg Leg Aluminum Leg Hover Unit Airjet Utility Large Storage Unit Device Improved Heat Sink Storage Large Storage Unit Protection Medium Armor Plating Weapon Medium Laser Energy Gun Medium Laser Energy Cannon Beam Cannon Ballistic Gun Light Assault Rifle Ballistic Cannon Assault Cannon Launcher Grenade Launcher Slashing Weapon Axe Build | -11 -10 -9 -8 ------- Run | Yrd Mat Mat Mat Slots Evolved 4 | . . 2 2 Power . | . . . . Propulsion 2 | . . 2 . Utility 2 | . . . 2 Weapon . | . . . . Parts Attached 63 | 6 14 30 13 Power 10 | 1 2 3 4 Engine 10 | 1 2 3 4 Core . | . . . . Reactor . | . . . . Propulsion 19 | 2 7 9 1 Treads . | . . . . Leg 18 | 2 7 9 . Wheel . | . . . . Hover 1 | . . . 1 Flight . | . . . . Utility 11 | 1 2 4 4 Device 1 | . . . 1 Storage 5 | 1 1 1 2 Processor . | . . . . Hackware . | . . . . Protection 5 | . 1 3 1 Artifact . | . . . . Weapon 23 | 2 3 14 4 Energy Gun 9 | 2 . 7 . Energy Cannon 3 | . 1 . 2 Ballistic Gun 7 | . 1 5 1 Ballistic Cannon 2 | . . 2 . Launcher 1 | . 1 . . Special Weapon . | . . . . Impact Weapon . | . . . . Slashing Weapon 1 | . . . 1 Piercing Weapon . | . . . . Special Melee Weapon . | . . . . Unidentified Prototypes 1 | . . 1 . Parts Lost 14 | . 2 1 11 Power 2 | . 1 . 1 Propulsion 6 | . . . 6 Utility 3 | . 1 1 1 Weapon 3 | . . . 3 Highest Loss Streak 10 | . 1 1 10 To Critical Strikes . | . . . . Average Backups 13 | 3 14 14 10 Power 2 | . 2 2 2 Propulsion 3 | 3 5 3 1 Utility 3 | . 3 4 . Weapon 4 | . 2 5 5 Tool/Special . | . . . . Unused Backups 25 | . 14 6 5 Power 8 | . 1 4 3 Propulsion 7 | . 7 . . Utility 3 | . 1 1 1 Weapon 7 | . 5 1 1 Tool/Special . | . . . . Average Slot Usage (%) 96 | . 98 99 66 Engine 12 | . 14 11 7 Leg 34 | . 28 43 20 Storage 12 | . 14 11 11 Protection 11 | . 12 10 5 Energy Gun 12 | . 18 8 2 Energy Cannon 3 | . 5 . 3 Ballistic Gun 3 | . 3 4 . Ballistic Cannon 3 | . . 6 5 Peak Build Rating 20 | 6 8 17 20 Average Rating 11 | 4 7 14 13 On Entrance 7 | . 6 8 15 Avg Prop Armor Cover (%) . | . . . . Naked Turns 45 | . . . 45 Heaviest Build 59 | 13 33 44 59 Greatest Support 40 | 20 20 40 40 Greatest Overweight (x) 1 | 1 1 1 1 Average Overweight (x) . | . . . . Largest Inventory Capacity 15 | 8 15 15 15 Average Capacity 14 | 7 14 15 10 Most Carried 15 | 7 15 15 15 Average Carried 13 | 4 14 14 10 Final Capacity 15 | 8 15 15 5 Final Carried 15 | 6 15 15 4 Class Distribution -------------------- 50% | Mutant 49% | Scavenger-Mutant Dominant Class ---------------- Mutant | -10/Materials Scavenger-Mutant | -9/Materials Scavenger-Mutant | -8/Materials Resources | -11 -10 -9 -8 ----------- Run | Yrd Mat Mat Mat Matter Collected 1794 | 211 430 1092 61 Remotely . | . . . . Salvage Created 1997 | . 696 1250 51 Parts 121 | . 39 77 5 Haulers Intercepted 3 | . 1 2 . Recyclers Shooed 7 | . 2 5 . Parts Field Recycled . | . . . . Retrieved Matter . | . . . . Parts Self-Destructed . | . . . . Prevented . | . . . . Parts Restored . | . . . . Kills | -11 -10 -9 -8 ------- Run | Yrd Mat Mat Mat Combat Hostiles Destroyed 45 | . 14 30 1 Guns 21 | . 5 16 . Cannons 14 | . 7 6 1 AOE 10 | . 2 8 . Classes Destroyed 8 | . 6 2 . Worker 2 | . . 2 . Hauler 3 | . 1 2 . Recycler 3 | . 1 2 . Operator 1 | . 1 . . Watcher 6 | . 3 3 . Swarmer 9 | . 2 7 . Grunt 30 | . 12 18 . Sentry 6 | . . 5 1 Best Kill Streak 5 | . 3 5 1 Combat Bots Only 4 | . 3 4 1 Max Kills in Single Turn 2 | . 2 2 1 Gunslinging . | . . . . Exploded 2 | . 2 1 . Melee . | . . . . Uniques/NPCs Destroyed . | . . . . Combat | -11 -10 -9 -8 -------- Run | Yrd Mat Mat Mat Hostile Shots Fired 321 | . 80 128 113 Missed 93 | . 18 45 30 Hits 228 | . 62 83 83 Projectile 228 | . 62 83 83 Critical Strikes 3 | . . . 3 Damage Taken 3569 | . 706 1156 1707 Core 793 | . 55 187 551 Absorbed by Shields . | . . . . Redirected to Shielding 43 | . 35 8 . Regen/Repaired (Parts) 12 | . . 12 . Core Remaining (%) 77 | 100 78 53 . Volleys Fired 171 | . 69 96 6 Largest 2 | . 2 2 2 Hottest 110 | . 110 110 100 Shots Fired 320 | . 126 183 11 Gun 207 | . 83 124 . Cannon 92 | . 39 45 8 Launcher 21 | . 4 14 3 Special . | . . . . Kinetic 89 | . 22 64 3 Thermal 140 | . 100 37 3 Explosive 21 | . 4 14 3 Electromagnetic 70 | . . 68 2 Robot Hit Streak 20 | . 7 20 3 Robot Miss Streak 4 | . 4 3 3 Penetration Max . | . . . . Secondary Targets . | . . . . Shots Hit Robots 198 | . 73 119 6 Core Hits 98 | . 34 58 6 Critical Kills . | . . . . Critical Parts Destroyed 1 | . . 1 . Critical Strikes 8 | . 1 6 1 Burn 4 | . 1 3 . Destroy 1 | . . 1 . Blast 1 | . . 1 . Corrupt 1 | . . 1 . Sever 1 | . . . 1 Melee Attacks 3 | . . . 3 Impact . | . . . . Slashing 3 | . . . 3 Piercing . | . . . . Sneak Attacks . | . . . . Combat Hostiles . | . . . . Follow-up Attacks . | . . . . Damage Inflicted 4038 | . 1179 2550 309 Guns 1700 | . 534 1166 . Cannons 1082 | . 440 590 52 Explosions 1079 | . 164 759 156 Melee 101 | . . . 101 Ramming 76 | . 41 35 . Kinetic 870 | . 135 735 . Thermal 1594 | . 839 729 26 Explosive 815 | . 164 495 156 Electromagnetic 582 | . . 556 26 Impact . | . . . . Slashing 101 | . . . 101 Piercing . | . . . . Highest Corruption 1 | . . 1 . Average Corruption 1 | . . 1 . Corruption Purged . | . . . . Corruption Blocked . | . . . . Effects 13 | . . 13 . Message Errors 5 | . . 5 . Matter Fused 1 | . . 1 . Heat Flow Errors 4 | . . 4 . Energy Discharges 2 | . . 2 . Weapon Failures 1 | . . 1 . Overload Shots . | . . . . Overflow Damage 19 | . . 19 . Projectiles 13 | . . 13 . Explosions 6 | . . 6 . Melee . | . . . . Knockbacks 12 | . . 12 . Impact . | . . . . Kinetic 10 | . . 10 . Secondary 2 | . . 2 . Self-Inflicted Damage 283 | . . 228 55 Shots 10 | . . 8 2 Rammed . | . . . . Targets Rammed 15 | . 11 4 . Kicked 15 | . 11 4 . Crushed . | . . . . Highest Temperature 417 | . 417 324 27 Average Temperature 102 | . 137 81 12 Received Heat Transfer 1242 | . 381 366 495 Effects 6 | . 4 2 . Shutdowns 1 | . 1 . . Interference 2 | . . 2 . Matter Decay 1 | . 1 . . Damage (minor) 2 | . 2 . . Siege Activations . | . . . . Martial Activations . | . . . . Shielding Activations . | . . . . Robots Disrupted . | . . . . Combat Hostiles . | . . . . Robots Corrupted . | . . . . Combat Hostiles . | . . . . Parts Fried . | . . . . Impact Corruptions . | . . . . Robots Melted . | . . . . Combat Hostiles . | . . . . Parts Melted 8 | . 5 3 . Heat Transferred 3732 | . 2026 1669 37 Parts Sabotaged . | . . . . Parts Stolen . | . . . . Parts Stripped . | . . . . Power Chain Reactions 4 | . . 4 . Alert | -11 -10 -9 -8 ------- Run | Yrd Mat Mat Mat Maximum Alert Level 3 | . 1 3 1 Low Security (%) 42 | 100 71 18 2 Level 1 28 | . 28 15 97 Level 2 24 | . . 55 . Level 3 4 | . . 10 . Level 4 . | . . . . Level 5 . | . . . . High Security . | . . . . Max Security . | . . . . Peak Influence 794 | . 255 794 328 Initial 328 | . . 102 328 Average 254 | . 76 440 268 Influence Increases 1894 | . 487 1261 146 Destroy 0b10 Robot/C 900 | . 280 600 20 Destroy 0b10 Robot/NC 75 | . 30 45 . Destroy Leader 248 | . 68 170 10 Successful Hack 91 | . 18 69 4 Disable Machine 180 | . 15 135 30 Destroy Structure 205 | . 31 152 22 Lose Combat Pursuer 195 | . 45 90 60 Influence Decreases 1700 | . 244 725 731 Entered New Map 592 | . . 141 451 Time Decay 968 | . 224 574 170 Lost Part 140 | . 20 10 110 Squads Dispatched 17 | . 3 10 4 Investigation 10 | . 2 7 1 Extermination . | . . . . Reinforcement 6 | . 1 2 3 Assault 1 | . . 1 . Garrison . | . . . . Intercept . | . . . . Searches Triggered . | . . . . Construction Impeded . | . . . . Haulers Reinforced . | . . . . Active Scanning Responses . | . . . . Cargo Convoy Interrupts . | . . . . Stealth | -11 -10 -9 -8 --------- Run | Yrd Mat Mat Mat Distress Signals 6 | . 1 3 2 Communications Jammed . | . . . . Distress Signals . | . . . . Times Spotted 104 | . 28 57 19 Peak Tracking Total 11 | . 4 5 11 Tactical Retreats 10 | . 2 5 3 Traps | -11 -10 -9 -8 ------- Run | Yrd Mat Mat Mat Traps Triggered 2 | . 1 . 1 Indirectly . | . . . . Trap Hack Attempts . | . . . . Triggered . | . . . . Disarmed . | . . . . Reprogrammed . | . . . . Reused . | . . . . Traps Extracted . | . . . . Installed . | . . . . Triggered . | . . . . Machines | -11 -10 -9 -8 ---------- Run | Yrd Mat Mat Mat Machines Disabled 12 | . 1 9 2 Max in Single Turn 2 | . 1 2 1 Machines Repaired . | . . . . Machines Dismantled . | . . . . Machines Sabotaged . | . . . . Overloaded Fab Kills . | . . . . Hacking | -11 -10 -9 -8 --------- Run | Yrd Mat Mat Mat Machines Accessed 19 | . 5 13 1 Terminals 15 | . 4 10 1 Fabricators . | . . . . Repair Stations 3 | . 1 2 . Recycling Units 1 | . . 1 . Scanalyzers . | . . . . Garrison Access . | . . . . Total Hacks 56 | . 14 39 3 Successful 25 | . 6 18 1 Failed 30 | . 7 21 2 Catastrophic 5 | . 1 3 1 Database Lockouts 1 | . 1 . . Manual 34 | . 12 21 1 Terminals 50 | . 12 35 3 Fabricators . | . . . . Repair Stations 4 | . 2 2 . Recycling Units 2 | . . 2 . Scanalyzers . | . . . . Garrison Access . | . . . . Terminal Hacks 14 | . 4 9 1 Part Schematic 1 | . . 1 . Robot Analysis 3 | . 1 2 . Prototype ID Bank 4 | . . 4 . Terminal Index 2 | . 1 1 . Locate Traps 2 | . 2 . . Dispatch Records 1 | . . . 1 Hauler Manifests 1 | . . 1 . Fabricator Hacks . | . . . . Repair Station Hacks 1 | . 1 . . Refit 1 | . 1 . . Recycling Unit Hacks 2 | . . 2 . Retrieve Components 2 | . . 2 . Scanalyzer . | . . . . Garrison Access Hacks . | . . . . Unauthorized Hacks 8 | . 1 7 . Terminals 6 | . 1 5 . Botnet 6 | . 1 5 . Fabricators . | . . . . Repair Stations 2 | . . 2 . Patch 2 | . . 2 . Recycling Units . | . . . . Scanalyzers . | . . . . Garrison Access . | . . . . Data Cores Recovered 1 | . 1 . . Used 1 | . 1 . . Hacking Detections 16 | . 4 11 1 Full Trace Events 8 | . 1 6 1 Feedback Events 1 | . . 1 . Corruption 1 | . . 1 . Feedback Blocked . | . . . . Robot Schematics Acquired . | . . . . Robots Built . | . . . . Authchips . | . . . . Time . | . . . . Total Robot Build Rating . | . . . . Part Schematics Acquired 1 | . . 1 . Parts Built . | . . . . Authchips . | . . . . Time . | . . . . Total Part Build Rating . | . . . . Part Studies Acquired . | . . . . Parts Repaired . | . . . . Time . | . . . . Parts Recycled . | . . . . Recycled Matter . | . . . . Retrieved Matter . | . . . . Retrieved Components . | . . . . Parts Scanalyzed . | . . . . Part Schematics Acquired . | . . . . Parts Damaged . | . . . . Bothacking | -11 -10 -9 -8 ------------ Run | Yrd Mat Mat Mat Used RIF Installer . | . . . . Robots Hacked . | . . . . Non-combat . | . . . . Combat . | . . . . Robot Hacks Applied . | . . . . Relay Couplers Released . | . . . . Fabnet Peak Effective % . | . . . . Robots Rewired . | . . . . Allies Hacked . | . . . . Hacks Repelled . | . . . . Allies | -11 -10 -9 -8 -------- Run | Yrd Mat Mat Mat Total Allies . | . . . . Largest Group . | . . . . Highest-Rated Group . | . . . . Highest-Rated Ally . | . . . . Total Orders . | . . . . Ally Attacks . | . . . . Total Damage . | . . . . Kills . | . . . . Allies Corrupted . | . . . . Allies Melted . | . . . . Intel | -11 -10 -9 -8 ------- Run | Yrd Mat Mat Mat Active Infowar (turns) . | . . . . Robot Analysis Total 3 | . 1 2 . Derelict Logs Recovered . | . . . . Drone Launches . | . . . . Drone Recoveries . | . . . . Exploration | -11 -10 -9 -8 ------------- Run | Yrd Mat Mat Mat Turns Passed 3911 | 86 1726 1751 348 Spaces Moved 2044 | 51 769 945 279 Core 93 | 3 . . 90 Treads . | . . . . Legs 1845 | 48 769 945 83 Wheels . | . . . . Hover 106 | . . . 106 Flight . | . . . . Fastest Speed 50 | 50 120 120 50 Average Speed 150 | 140 186 137 100 Slowest Speed 190 | 190 190 190 190 Overloaded Moves . | . . . . Propulsion Burnouts . | . . . . Robots Hopped . | . . . . Potential Cave-ins . | . . . . Cave-ins Triggered . | . . . . Exploration Rate (%) 41 | 4 71 62 28 Regions Visited 3 Branch Regions . Pre-discovered Areas . | . . . . Known Exits Taken . | . . . . Unknown Exits Taken 3 | 1 1 1 . Scrap Searched . | . . . . Spaces Dug . | . . . . Terrain Destroyed 207 | . 27 163 17 Melee . | . . . . Projectile 7 | . . 6 1 AOE 200 | . 27 157 16 Terrain Rammed . | . . . . Walls Destroyed . | . . . . Machines Disabled . | . . . . Actions | -11 -10 -9 -8 --------- Run | Yrd Mat Mat Mat Total 2544 | 63 941 1208 332 Wait 100 | . 24 64 12 Move 2041 | 50 768 944 279 Hop . | . . . . Pick Up 56 | 7 26 16 7 Fast Attach 11 | 5 1 2 3 Attach 18 | 1 2 3 12 Detach 1 | . 1 . . Swap 71 | . 15 51 5 Drop 57 | . 24 28 5 Fire 171 | . 69 96 6 Melee 3 | . . . 3 Ram . | . . . . Kick 15 | . 11 4 . Crush . | . . . . Escape Stasis . | . . . . Rewire . | . . . . Trap . | . . . . Miscellaneous . | . . . . Route ------- -11/Scrapyard -10/Materials (discovered 2 exits: *Mat / [*Min]) -9/Materials (discovered 2 exits: *Mat / [*Sto]) -8/Materials History --------- Turn | Location | Event 2 | -11/Scrapyard | Met Revision 17 19 | -11/Scrapyard | Discovered new exit (range 16) 87 | -11/Scrapyard | Entered Materials 310 | -10/Materials | Build established: Mutant 335 | -10/Materials | Discovered new exit (range 7) 838 | -10/Materials | Discovered new exit (range 7) 996 | -10/Materials | Central database locked down 1813 | -10/Materials | Entered another Materials area 1813 | -9/Materials | Evolved 2 slots: Propulsion x2 2109 | -9/Materials | Build established: Scavenger-Mutant 2171 | -9/Materials | Discovered new exit (range 8) 2409 | -9/Materials | Discovered new exit (range 13) 3413 | -9/Materials | First assault squad dispatched 3564 | -9/Materials | Entered another Materials area 3564 | -8/Materials | Evolved 2 slots: Utility x2 3772 | -8/Materials | Released all parts (8) 3776 | -8/Materials | Core integrity fell below 50% 3799 | -8/Materials | Lost 10 parts (1p6n1u2w) 3871 | -8/Materials | Core integrity fell below 20% 3912 | -8/Materials | Destroyed by X-62 Marksman with Gauss Rifle Last Messages --------------- Penetrated by Slug. Assault Cannon destroyed. Acquired Autogun. Connecting with Terminal... Current location identified: Materials >>Enumerate(Squads) Retrieving dispatch records... Found 26 active squads: 9x Security 5x Surveillance 5x Patrol 6x Transport 1x Reinforcement ALERT: Suspicious activity at Terminal M011. Dispatching Investigation squad. ALERT: Hostiles spotted, dispatching reinforcements to Terminal M007. W-25 Informer sends out distress signal. Acquired Hrd. Light Armor Plating. Acquired Axe. X-62 Marksman Imp. Deuterium Engine severed. Map ----- +----------------------------------------------------+ | ?????????????????????????????????????????????????? | | ?????????????????????????????????????????????????? | | ?????????????????????????????????????????????????? | | ?????????????????????????????????????????????????? | | ?????????????????????????????????????????????????? | | ?????????????????????????????????????????????????? | | ?????????????????????????????????????????????????? | | ?????????????????????????????????????????????????? | | ?????????????????????????????????????????????????? | | ?????????????????????????????????????????????????? | | ??????????????????????????????#???????????? ?????? | | ????????###?????????????????? #???????????? ?????? | | #########T##################[ #??????????? ?????? | | #??????????# ?????? | | #### ######## ## #??????????# ?????? | | ???# #??????# #???????????????# ?????? | | ???# ######+##+#??????# #??????????????## ####?? | | ???# #???# ????????# #??????????????# ### | | ???# #???# """ ???#### #???#??????????# | | ???# #???# "T" #??# #?? #??????????+ H | | ???# #???# #??# ######+##?????????? | | ???# #???# #??# ## ! #?????????? ### | | ???# #???# #?## ## #??????????# #??? | | ???# ########/##### # """############ #??? | | ???# *x """## # #??? | | ??## #####/##### #@ """## + +??? | | ??#T #?????????## ## ## # #??? | | ??## #??????????# ########## # #??? | | ???# #??????????# #????????#/######### ##?? | | ???# ### """????# #????????# #??????# ### | | ???# + """????# #????????# #??????# ^ | | ???# #????????# #????????# #??????# | | ???# ########## #????????# #??????# ^ | | ???# #????????# #??????# ### | | ???# ######## +????????# ################ | | ???# # # ########## ## #?# ! | | ???# + = # # """ #?# | | ???#+#+## ##### " + """ #?# """ | | ???# # #???# """ #### # """ #?# """ | | ???# # #???# """ #??# # #?# """ | | ???# ! # #???# """ #??# # #?# | | ???# # #???########??# ########?# | | ???# # #?????????????# """ #????????# | | ???######+??????????????# G" #????????###### | | ????????????????????????# """ #?????????????? | | ????????????????????????# #?????????????? | | ????????????????????????# #?????????????? | | ????????????????????????############?????????????? | | ?????????????????????????????????????????????????? | | | +----------------------------------------------------+ Best States ------------- Heat Dissipation 45 Energy Generation 12 Energy Capacity 265 Matter Stores 396 Matter Capacity 400 Sight Range 16 Terrain Scan Density 10 Armor Coverage 225 Propulsion Shielding 33 Evasion (%) 55 Item Schematics ----------------- Imp. Aluminum Leg | -9/Materials | Hacked Robot Schematics ------------------ None Fabricated ------------ Nothing Repaired ---------- Nothing Studied --------- None Alien Tech Used ----------------- None Achievements -------------- You Again Challenges ------------ None Game ------ Seed JunkSeismicTurbovents Manual? 0 Play Time 00:46:55 Cumulative 20.5 hours Start 2026.07.17 @ 19:22:14 End 2026.07.18 @ 19:04:00 Sessions 3 Manual Loads 0 Difficulty Rogue Special Mode None Game No. 19 Rogue 19 Adventurer 0 Explorer 0 Win Type - Total 0 Types 0/0/0/0/0/0/0/0/0/0 Lore% 25 Gallery% 18 Achievement% 19 Wizard Run 0 Options --------- Layout 0 ASCII 0 Keyboard 1 Movement Vi Keybinds 0 Fullscreen 1 Font 18/SmallcapsGlow Map View 76x50 Zoom Use 0% Tactical HUD 0 Map Filters NONE Filters NONE Steam 1 RUN: cba253fc-bbd1-4a0d-8dd8-700ee103e325